bitfinex-derivatives/quotes_ETHF0:USTF0_20250105
["timestamp","ask_amount","ask_price","bid_price","bid_amount"]
[1736036019511,1.81259,3669.0,3668.8,2.45044173]
[1736036019914,1.81259,3669.0,3668.8,0.2726]
[1736036020713,0.2726,3668.9,3668.7,3.48041]
[1736036021018,0.2726,3668.9,3668.8,0.2726]
[1736036021220,1.54,3669.0,3668.8,0.2726]
[1736036021419,1.81259,3669.0,3668.8,0.2726]
[1736036022922,0.2726,3668.8,3668.7,3.2078]
[1736036023915,1.54,3669.0,3668.7,3.2078]
[1736036024422,1.81259,3669.0,3668.9,0.2726]
[1736036024623,1.54,3669.0,3668.8,0.2726]
[1736036024922,1.81259,3669.0,3668.9,0.2726]
[1736036025420,1.54,3669.0,3668.7,3.48041]
[1736036025619,0.2726,3668.9,3668.7,3.48041]
[1736036025819,1.8126,3669.0,3668.9,0.2726]
[1736036026020,1.54,3669.0,3668.9,0.2726]
[1736036029120,1.81259,3669.0,3668.9,0.2726]
[1736036029722,1.54,3669.0,3668.9,0.2726]
[1736036030117,1.81259,3669.0,3668.9,0.2726]
[1736036030527,1.54,3669.0,3668.9,0.2726]
[1736036030821,0.7772,3669.0,3668.9,0.2726]
[1736036032625,0.7619,3669.3,3669.2,0.27257]
[1736036036023,0.7653,3669.4,3669.1,5.38564173]
[1736036036222,0.7653,3669.4,3669.3,0.27257]
[1736036038124,0.7446,3669.5,3669.1,5.38564173]
[1736036038426,0.7446,3669.5,3669.4,2.45040173]
[1736036040524,0.7672,3669.9,3669.4,2.45040173]
[1736036040525,3.2078,3670.0,3669.4,2.17784173]
[1736036040722,3.2078,3670.0,3669.9,0.27252]
[1736036040934,0.7428,3670.4,3670.3,0.27249]
[1736036043024,0.7428,3670.4,3670.3,3.48029]
[1736036043224,0.799,3670.7,3670.4,0.27249]
[1736036043529,0.7451,3670.9,3670.4,0.27249]
[1736036045524,0.7801,3671.1,3670.4,0.27249]
[1736036045734,0.7777,3671.0,3670.4,0.27249]
[1736036054937,0.27246,3670.8,3670.4,0.27249]
[1736036055138,0.27245,3670.9,3670.4,0.27249]
[1736036055340,0.7829,3670.7,3670.4,0.27249]
[1736036055532,0.7829,3670.7,3670.3,3.2078]
[1736036055737,0.7829,3670.7,3669.9,6.40627809]
[1736036055738,0.7829,3670.7,3669.9,3.2078]
[1736036055945,0.27248,3670.6,3670.4,0.27249]
[1736036056240,0.27248,3670.6,3669.9,5.38564173]
[1736036056843,0.27248,3670.6,3670.4,0.27249]
[1736036057140,1.05537,3670.7,3670.4,0.27249]
[1736036057335,0.7829,3670.7,3670.4,0.27249]
[1736036057533,1.05537,3670.7,3670.4,0.27249]
[1736036058133,0.7829,3670.7,3670.4,0.27249]
[1736036058638,1.05536,3670.7,3670.4,0.27249]
[1736036058842,0.7829,3670.7,3670.4,0.27249]
[1736036059738,1.05537,3670.7,3670.4,0.27249]
[1736036059937,0.7829,3670.7,3670.4,0.27249]
[1736036062439,0.7829,3670.7,3670.3,3.2078]
[1736036062645,0.2725,3670.3,3670.1,0.2725]
[1736036062843,0.27251,3670.1,3670.0,0.27251]
[1736036063043,1.7546,3670.2,3669.9,2.17784173]
[1736036063236,1.7546,3670.2,3670.1,0.27251]
[1736036063237,1.4821,3670.2,3670.1,0.27251]
[1736036063438,1.4821,3670.2,3669.8,4.27085206]
[1736036063641,0.27253,3669.9,3669.7,0.27253]
[1736036063945,1.4821,3670.2,3669.9,0.27252]
[1736036064144,1.4821,3670.2,3669.6,2.17784173]
[1736036064443,0.27252,3669.9,3669.8,0.27253]
[1736036064640,1.4821,3670.2,3669.8,0.27253]
[1736036064837,1.4821,3670.2,3669.6,2.17784173]
[1736036065037,1.4821,3670.2,3669.4,3.2078]
[1736036065236,1.4821,3670.2,3669.6,0.27254]
[1736036065441,1.4821,3670.2,3669.4,3.2078]
[1736036065638,1.4821,3670.2,3669.6,0.27254]
[1736036065639,0.27253,3669.8,3669.6,0.27254]
[1736036065846,0.27255,3669.6,3669.5,0.27255]
[1736036066840,0.27254,3669.7,3669.3,2.17784173]
[1736036067047,3.2078,3670.0,3669.3,2.17784173]
[1736036067240,0.27256,3669.5,3669.3,0.27256]
[1736036067542,0.8084,3669.4,3669.3,0.27256]
[1736036067743,0.8084,3669.4,3669.3,2.45040173]
[1736036069047,1.08096,3669.4,3669.3,2.45040173]
[1736036069448,0.8084,3669.4,3669.3,0.27256]
[1736036070147,0.27257,3669.3,3669.1,0.27258]
[1736036070447,1.08097,3669.4,3669.2,0.27257]
[1736036070645,1.08097,3669.4,3669.0,0.27259]
[1736036070646,0.27257,3669.3,3669.0,0.27259]
[1736036070838,0.27258,3669.2,3668.7,2.17784173]
[1736036071045,0.27258,3669.2,3669.0,0.27259]
[1736036071648,0.27258,3669.2,3668.7,2.17784173]
[1736036071649,0.27257,3669.3,3669.1,0.27258]
[1736036072248,0.27257,3669.3,3669.2,0.27257]
[1736036072544,0.27258,3669.2,3669.1,0.27258]
[1736036072848,0.27257,3669.3,3669.1,0.27258]
[1736036073436,0.27257,3669.3,3668.8,0.2726]
[1736036073649,0.27258,3669.2,3669.1,0.27258]
[1736036073847,0.27257,3669.3,3669.1,0.27258]
[1736036074545,0.8084,3669.4,3668.6,3.2078]
[1736036074847,0.27261,3668.8,3668.7,0.27261]
[1736036075236,0.8084,3669.4,3668.6,3.2078]
[1736036075541,3.2078,3669.5,3668.6,3.48042]
[1736036075542,0.7853,3668.7,3668.6,3.48042]
[1736036079543,1.05791,3668.7,3668.6,3.48042]
[1736036079749,0.7853,3668.7,3668.6,3.48042]
[1736036085458,0.8092,3669.0,3668.6,3.2078]
[1736036085656,0.8092,3669.0,3668.9,0.2726]
[1736036087251,0.81190426,3669.0,3668.9,0.2726]
[1736036095448,0.27262,3668.6,3668.5,0.27262]
[1736036096859,4.01970426,3669.0,3668.3,5.38564173]
[1736036097060,0.7978,3668.5,3668.4,0.27263]
[1736036097561,1.6061,3668.5,3668.4,0.27263]
[1736036099061,1.6061,3668.5,3667.9,3.2078]
[1736036099260,0.27264,3668.3,3668.1,0.27265]
[1736036099855,0.27265,3668.2,3667.9,7.47865206]
[1736036100055,0.7715,3668.4,3668.0,0.27266]
[1736036100361,0.7715,3668.4,3667.7,2.17784173]
[1736036100553,3.9793,3668.4,3668.0,0.27266]
[1736036100759,0.27264,3668.3,3667.7,2.17784173]
[1736036100960,0.27264,3668.3,3668.1,0.27265]
[1736036101154,3.9793,3668.4,3668.1,0.27265]
[1736036101155,0.27265,3668.2,3668.1,0.27265]
[1736036101355,0.27265,3668.3,3668.1,0.27265]
[1736036101556,3.9793,3668.4,3667.7,2.17784173]
[1736036101759,0.27266,3668.1,3667.9,0.27267]
[1736036101960,3.9793,3668.4,3668.0,0.27266]
[1736036102261,3.9793,3668.4,3667.7,6.44869379]
[1736036102461,0.27265,3668.2,3668.0,0.27266]
[1736036102661,0.27265,3668.3,3668.1,0.27265]
[1736036103361,0.27265,3668.3,3667.7,2.17784173]
[1736036103560,1.04414,3668.4,3668.3,0.27264]
[1736036103759,1.04414,3668.4,3668.2,0.27264]
[1736036103960,0.27264,3668.3,3668.2,0.27264]
[1736036104967,0.7715,3668.4,3668.2,0.27264]
[1736036105165,1.04414,3668.4,3668.2,0.27264]
[1736036105666,0.7715,3668.4,3668.2,0.27264]
[1736036106062,1.04414,3668.4,3668.2,0.27264]
[1736036106366,1.04414,3668.4,3668.3,0.27264]
[1736036108868,0.7715,3668.4,3667.8,4.27085206]
[1736036109068,0.27265,3668.2,3668.1,0.27265]
[1736036111172,0.27266,3668.1,3668.0,4.54351206]
[1736036111777,0.27266,3668.1,3668.0,4.27085206]
[1736036112168,0.27266,3668.1,3668.0,4.54351206]
[1736036112469,0.27266,3668.1,3668.0,0.27266]
[1736036112867,0.7715,3668.4,3668.0,0.27266]
[1736036113070,0.27266,3668.1,3668.0,0.27266]
[1736036115072,0.27265,3668.2,3668.1,0.27265]
[1736036115473,0.27266,3668.1,3668.0,4.54351206]
[1736036115873,0.7715,3668.4,3668.1,0.27266]
[1736036116073,0.27265,3668.3,3668.1,0.27266]
[1736036118177,0.7715,3668.4,3668.3,0.27264]
[1736036118479,0.7715,3668.4,3668.1,0.98138954]
[1736036118682,1.04414,3668.4,3668.3,0.27264]
[1736036119778,0.7715,3668.4,3668.3,0.27264]
[1736036120577,0.7715,3668.4,3668.3,1.25402954]
[1736036121082,1.6061,3668.5,3668.4,0.27263]
[1736036123882,2.13487794,3668.9,3668.3,8.4600416]
[1736036124085,3.16517794,3668.9,3668.8,0.2726]
[1736036124991,1.0303,3668.9,3668.8,0.2726]
[1736036126287,1.0303,3668.9,3668.6,5.2522416]
[1736036126288,2.93215755,3668.9,3668.6,4.27085206]
[1736036126493,0.27261,3668.7,3668.6,4.27085206]
[1736036127390,2.13487794,3668.8,3668.3,4.27085206]
[1736036127598,5.34267794,3668.8,3668.3,4.27085206]
[1736036127787,5.34267794,3668.8,3668.4,0.27263]
[1736036127995,0.27262,3668.6,3668.5,0.27263]
[1736036128990,0.27261,3668.7,3668.6,0.27261]
[1736036129192,5.34267794,3668.8,3668.7,0.27261]
[1736036129589,3.2078,3668.8,3668.7,0.27261]
[1736036129988,0.00270426,3669.0,3668.9,0.2726]
[1736036131695,0.00270426,3669.0,3668.9,4.53613083]
[1736036132095,0.27529426,3669.0,3668.9,4.26353083]
[1736036132292,2.44975181,3669.0,3668.9,4.26353083]
[1736036132494,1.35729426,3669.0,3668.9,4.26353083]
[1736036133400,0.27261,3668.8,3668.6,4.26353083]
[1736036133696,1.6187,3668.7,3668.6,4.26353083]
[1736036134094,1.89131,3668.7,3668.6,4.26353083]
[1736036134297,1.6187,3668.7,3668.6,4.53615083]
[1736036134892,1.89131,3668.7,3668.5,4.26353083]
[1736036135098,1.6187,3668.7,3668.5,4.53615083]
[1736036135299,1.6187,3668.7,3668.6,0.27262]
[1736036136094,1.6187,3668.7,3668.6,4.67586783]
[1736036137001,1.08470426,3669.0,3668.9,0.2726]
[1736036137196,0.8014,3668.8,3668.7,0.27261]
[1736036138591,0.8014,3668.8,3668.7,11.07115408]
[1736036139401,0.00270426,3669.0,3668.9,0.2726]
[1736036140894,0.27529426,3669.0,3668.9,0.2726]
[1736036141102,0.2726,3668.9,3668.8,0.2726]
[1736036141598,0.2726,3668.9,3668.7,6.39529625]
[1736036141599,0.00270426,3669.0,3668.9,0.2726]
[1736036142105,0.27529426,3669.0,3668.9,0.2726]
[1736036142495,0.00270426,3669.0,3668.9,0.2726]
[1736036143503,0.27529426,3669.0,3668.9,0.2726]
[1736036145904,0.00270426,3669.0,3668.9,0.2726]
[1736036147301,0.27529426,3669.0,3668.9,0.2726]
[1736036148306,0.00270426,3669.0,3668.9,0.2726]
[1736036148904,0.00270426,3669.0,3668.9,4.53931016]
[1736036150309,0.00270426,3669.0,3668.9,4.67495032]
[1736036154812,0.00270426,3669.0,3668.9,11.07024657]
[1736036158713,0.8116,3669.1,3669.0,0.27259]
[1736036159912,0.8116,3669.1,3669.0,4.67494032]
[1736036161009,0.8116,3669.1,3669.0,4.67223606]
[1736036161603,0.8116,3669.1,3669.0,11.06753231]
[1736036162209,0.8116,3669.1,3669.0,12.04846839]
[1736036164420,0.8116,3669.1,3669.0,11.06753231]
[1736036164723,1.08418,3669.1,3669.0,11.06753231]
[1736036165317,0.8116,3669.1,3669.0,11.06753231]
[1736036165912,0.8116,3669.1,3669.0,4.67223606]
[1736036167213,0.8116,3669.1,3669.0,11.06753231]
[1736036169316,2.14159326,3669.4,3669.0,10.79764657]
[1736036169516,2.14159326,3669.4,3669.3,0.27257]
[1736036170115,0.8384,3669.5,3669.4,0.27256]
[1736036170317,0.8384,3669.5,3669.4,1.25349608]
[1736036171714,0.8384,3669.5,3669.4,12.05459728]
[1736036173323,0.8384,3669.5,3669.4,5.6558464]
[1736036174620,0.8384,3669.5,3669.4,12.05459728]
[1736036176625,2.14159326,3669.9,3669.8,0.27253]
[1736036177015,0.27254,3669.7,3669.4,10.8011012]
[1736036177221,1.6238,3669.6,3669.4,10.8011012]
[1736036177524,0.7901,3669.5,3669.4,11.0736612]
[1736036177718,1.06265,3669.5,3669.4,10.8011012]
[1736036178017,1.06265,3669.5,3669.3,8.52706167]
[1736036178018,0.27256,3669.4,3669.3,8.52706167]
[1736036178224,1.25349608,3669.4,3669.3,8.52706167]
[1736036178416,0.27256,3669.4,3669.3,6.00766167]
[1736036178615,0.7901,3669.5,3669.3,6.28022167]
[1736036178817,1.25349608,3669.4,3669.3,6.00766167]
[1736036179524,0.27257,3669.3,3669.1,4.26489214]
[1736036180019,0.27257,3669.3,3669.2,0.27257]
[1736036180218,3.39508934,3669.4,3669.3,0.27257]
[1736036180523,2.41415326,3669.4,3669.3,0.27257]
[1736036180720,3.48494989,3669.4,3669.3,0.27257]
[1736036181220,3.21238989,3669.4,3669.3,1.25350608]
[1736036181921,3.21238989,3669.4,3669.3,0.27257]
[1736036182517,0.7901,3669.5,3669.3,0.27257]
[1736036182518,0.7901,3669.5,3669.4,0.27256]
[1736036183922,0.7901,3669.5,3669.4,4.61272506]
[1736036184125,0.806,3669.6,3669.4,4.34016506]
[1736036184319,2.14311397,3669.7,3669.6,0.27255]
[1736036184720,2.14311397,3669.7,3669.6,3.48035]
[1736036185222,3.21238989,3669.9,3669.6,3.48035]
[1736036185223,2.14311397,3669.9,3669.6,7.54796506]
[1736036185523,2.14311397,3669.9,3669.8,0.27253]
[1736036186420,1.628,3670.0,3669.7,6.39733821]
[1736036186625,1.90052,3670.0,3669.9,0.27252]
[1736036187528,1.628,3670.0,3669.9,0.27252]
[1736036187829,1.90052,3670.0,3669.9,0.27252]
[1736036188028,3.77111397,3670.0,3669.9,0.27252]
[1736036188927,4.04363397,3670.0,3669.9,0.27252]
[1736036189130,3.77111397,3670.0,3669.9,0.27252]
[1736036190331,1.628,3670.0,3669.9,0.27252]
[1736036194229,1.628,3670.0,3669.6,4.26366871]
[1736036194533,0.27254,3669.8,3669.7,4.53619871]
[1736036194744,0.27254,3669.8,3669.7,4.26366871]
[1736036195133,2.44595063,3669.8,3669.7,4.26366871]
[1736036195333,3.51595063,3669.8,3669.7,3.00006871]
[1736036195831,8.24341063,3669.8,3669.1,9.399427]
[1736036196035,5.65378063,3669.2,3669.1,4.2198568]
[1736036196229,0.27258,3669.1,3669.0,5.47460601]
[1736036196427,3.51599063,3669.1,3669.0,4.74435601]
[1736036196626,3.51599063,3669.1,3669.0,3.15175601]
[1736036196627,8.51599063,3669.1,3669.0,3.15175601]
[1736036196934,8.51599063,3669.1,3669.0,1.79275601]
[1736036197236,8.51599063,3669.1,3669.0,1.10445601]
[1736036198133,13.32372132,3669.1,3668.1,0.27265]
[1736036198337,13.32372132,3669.1,3667.9,1.10887]
[1736036198338,0.27266,3668.1,3667.9,1.10887]
[1736036198538,0.27266,3668.0,3667.9,0.8362]
[1736036199034,0.27266,3668.1,3667.8,0.27267]
[1736036199338,0.27269,3667.7,3667.6,0.8098]
[1736036200232,3.48049,3667.7,3667.6,0.8098]
[1736036201240,7.09872815,3667.7,3667.6,0.8098]
[1736036202131,3.61823815,3667.7,3667.6,0.8098]
[1736036202335,3.61823815,3667.7,3667.6,1.08249]
[1736036202534,3.20923373,3667.8,3667.6,1.08249]
[1736036202742,3.20923373,3667.8,3667.7,0.27269]
[1736036203127,3.20923373,3667.8,3667.7,1.08249]
[1736036203738,1.94953373,3667.8,3667.7,1.08249]
[1736036203941,5.61641935,3668.1,3667.8,0.27268]
[1736036204142,5.61641935,3668.1,3667.9,0.7603]
[1736036204333,5.34375935,3668.1,3667.9,0.7603]
[1736036204534,5.34375935,3668.1,3667.9,1.03297]
[1736036204936,3.2078,3668.1,3668.0,0.27266]
[1736036205942,3.2078,3668.1,3667.9,1.03297]
[1736036206140,3.2078,3668.1,3668.0,0.27266]
[1736036207843,3.2078,3668.1,3667.9,0.7603]
[1736036208838,3.2078,3668.1,3667.9,1.03297]
[1736036209039,3.48046,3668.1,3667.9,0.7603]
[1736036209240,0.27266,3668.0,3667.9,0.7603]
[1736036210142,3.2078,3668.1,3667.9,0.7603]
[1736036210339,3.48046,3668.1,3667.9,1.03297]
[1736036210546,0.27266,3668.1,3667.9,1.03297]
[1736036210949,0.27265,3668.2,3668.0,0.27266]
[1736036211150,0.27266,3668.1,3667.9,1.03296]
[1736036211445,5.34375935,3668.6,3667.9,0.7603]
[1736036211743,3.2078,3668.6,3667.9,0.7603]
[1736036211944,0.27263,3668.5,3668.3,0.27264]
[1736036212140,0.27263,3668.5,3668.4,1.5758]
[1736036212344,3.2078,3668.6,3668.5,0.27263]
[1736036212547,0.27261,3668.7,3668.4,1.5758]
[1736036212746,2.40856935,3668.8,3668.6,0.27262]
[1736036212944,0.27262,3668.6,3668.5,0.7662]
[1736036216053,0.27263,3668.5,3668.4,1.5758]
[1736036218246,0.27265,3668.2,3668.1,0.8341]
[1736036218646,6.06274063,3668.8,3668.1,0.8341]
[1736036218647,0.27265,3668.3,3668.1,1.10676]
[1736036219046,3.2078,3668.8,3668.1,0.8341]
[1736036219352,0.27264,3668.3,3668.2,0.27264]
[1736036220152,3.2078,3668.8,3668.1,0.8341]
[1736036220353,0.27265,3668.2,3668.1,0.8341]
[1736036220556,0.27265,3668.2,3668.1,1.10676]
[1736036220752,0.27264,3668.3,3668.1,1.10676]
[1736036221052,3.2078,3668.8,3668.1,0.8341]
[1736036221250,0.27265,3668.3,3668.1,1.10675]
[1736036221451,0.27265,3668.3,3668.1,0.8341]
[1736036221655,0.27265,3668.3,3668.2,0.27265]
[1736036222153,0.27265,3668.3,3668.1,1.10675]
[1736036223150,0.27265,3668.3,3668.2,0.27265]
[1736036223854,3.2078,3668.8,3668.1,0.8341]
[1736036224054,3.2078,3668.8,3668.1,1.10675]
[1736036224255,3.2078,3668.8,3668.1,0.8341]
[1736036224450,0.27264,3668.4,3668.2,0.27264]
[1736036224763,0.27264,3668.3,3668.2,0.27264]
[1736036225356,3.2078,3668.8,3668.3,0.27264]
[1736036225357,0.27264,3668.4,3668.3,0.27264]
[1736036226352,3.2078,3668.8,3668.7,0.27261]
[1736036227954,0.27259,3669.0,3668.9,0.2726]
[1736036228662,0.27259,3669.0,3668.4,4.8079]
[1736036228663,3.2078,3669.2,3668.8,0.2726]
[1736036228854,3.2078,3669.2,3668.9,0.7951]
[1736036229055,0.2726,3669.0,3668.9,1.0677]
[1736036229255,3.2078,3669.2,3668.9,0.7951]
[1736036229452,0.27258,3669.1,3668.9,0.7951]
[1736036229658,0.27259,3669.0,3668.9,0.7951]
[1736036230052,0.27259,3669.0,3668.9,1.0677]
[1736036230258,0.27259,3669.1,3669.0,0.27259]
[1736036230965,3.2078,3669.2,3669.1,0.27258]
[1736036231757,2.13595935,3669.5,3669.4,0.27256]
[1736036233563,0.27253,3669.8,3669.6,0.27254]
[1736036233864,0.27253,3669.8,3669.7,0.775]
[1736036234270,0.27253,3669.8,3669.7,1.04753]
[1736036234560,0.27253,3669.8,3669.7,0.775]
[1736036234859,2.40848935,3669.9,3669.7,1.04754]
[1736036235066,0.27253,3669.9,3669.8,0.7654]
[1736036235966,0.27253,3669.9,3669.8,1.03793]
[1736036236168,0.27253,3669.9,3669.8,0.7654]
[1736036236764,2.13595935,3670.0,3669.9,0.27252]
[1736036236967,3.2078,3670.2,3669.8,2.93881063]
[1736036237168,3.2078,3670.2,3670.1,0.27251]
[1736036238966,3.2078,3670.6,3670.5,0.27247]
[1736036239861,4.28125181,3670.9,3670.3,0.27249]
[1736036240059,4.28125181,3670.9,3670.8,0.27246]
[1736036240467,3.48025,3671.0,3670.8,0.27246]
[1736036240669,3.2078,3671.0,3670.3,0.7998]
[1736036240863,0.27247,3670.7,3670.4,0.27248]
[1736036241058,3.2078,3671.0,3670.1,5.38121063]
[1736036241059,2.17341063,3670.8,3670.1,3.2078]
[1736036241368,0.27249,3670.4,3670.2,0.2725]
[1736036241564,0.27249,3670.4,3670.1,3.2078]
[1736036241565,3.2078,3670.6,3670.1,3.2078]
[1736036241868,0.2725,3670.3,3670.1,3.4803]
[1736036242065,0.2725,3670.3,3670.0,1.5888]
[1736036242263,0.27249,3670.4,3670.2,0.2725]
[1736036242864,0.27249,3670.4,3670.3,0.27249]
[1736036243066,3.2078,3670.6,3670.3,0.27249]
[1736036243265,0.771,3670.7,3670.0,1.5888]
[1736036243465,0.27248,3670.5,3670.3,0.27249]
[1736036243869,3.79491063,3670.9,3670.0,1.5888]
[1736036244068,0.27247,3670.6,3670.5,0.27247]
[1736036244268,0.27247,3670.6,3670.0,1.5888]
[1736036244269,0.27247,3670.6,3670.4,0.27248]
[1736036244974,0.27247,3670.6,3670.0,1.5888]
[1736036245166,0.27246,3670.7,3670.1,0.68128]
[1736036245364,0.27246,3670.7,3670.6,0.27247]
[1736036245771,0.27246,3670.7,3670.1,0.68128]
[1736036246066,2.17341063,3670.9,3670.0,4.7966]
[1736036246067,0.27248,3670.5,3670.0,4.7966]
[1736036246272,2.17341063,3670.9,3670.0,4.7966]
[1736036246671,0.27247,3670.7,3670.5,0.27248]
[1736036246872,0.27247,3670.7,3670.6,1.5435]
[1736036247282,0.27246,3670.8,3670.6,1.81597]
[1736036247662,0.27246,3670.8,3670.6,1.5435]
[1736036247867,0.27246,3670.8,3670.7,1.10106]
[1736036248071,3.2078,3671.1,3670.8,0.27245]
[1736036248274,0.27245,3671.0,3670.8,0.27245]
[1736036248571,3.2078,3671.1,3670.7,0.8286]
[1736036248772,2.17341063,3671.2,3670.8,0.27245]
[1736036249076,0.27245,3670.9,3670.7,1.10106]
[1736036249873,0.27246,3670.8,3670.7,1.10106]
[1736036250075,0.27246,3670.8,3670.7,0.8286]
[1736036251074,0.27246,3670.7,3670.6,1.81597]
[1736036251274,3.2078,3671.1,3670.6,1.5435]
[1736036251469,0.27246,3670.8,3670.6,1.81597]
[1736036251675,0.27246,3670.8,3670.7,0.27246]
[1736036252072,3.2078,3671.1,3670.6,1.81597]
[1736036252277,0.27246,3670.7,3670.6,1.81597]
[1736036252777,0.27246,3670.7,3670.6,0.764]
[1736036252974,0.27246,3670.8,3670.6,0.764]
[1736036253179,0.27246,3670.8,3670.6,1.03647]
[1736036254176,0.27246,3670.8,3670.7,0.27246]
[1736036254370,0.27246,3670.8,3670.7,0.8309]
[1736036254568,0.27246,3670.8,3670.7,1.10336]
[1736036256380,0.27246,3670.8,3670.7,0.8309]
[1736036256773,3.2078,3671.1,3670.6,0.764]
[1736036257079,0.27246,3670.8,3670.7,0.27246]
[1736036257779,0.27246,3670.7,3670.6,1.03647]
[1736036259077,0.27246,3670.8,3670.7,0.27246]
[1736036262784,0.27245,3670.9,3670.8,0.27245]
[1736036265779,3.2078,3671.1,3671.0,0.27244]
[1736036266481,3.48023,3671.1,3671.0,0.27244]
[1736036268185,3.2078,3671.1,3671.0,0.27244]
[1736036268681,3.48023,3671.1,3671.0,0.27244]
[1736036268985,0.27243,3671.1,3671.0,0.27244]
[1736036269788,0.27244,3671.0,3670.9,0.27244]
[1736036269987,0.27244,3671.1,3671.0,0.27244]
[1736036270382,0.821,3671.4,3670.6,0.764]
[1736036270689,0.27244,3671.1,3671.0,0.27244]
[1736036271191,0.821,3671.4,3670.6,0.764]
[1736036271390,0.821,3671.4,3671.0,0.27244]
[1736036271391,0.27244,3671.1,3671.0,0.27244]
[1736036271582,0.821,3671.4,3670.6,0.764]
[1736036271784,0.27245,3671.0,3670.9,0.27244]
[1736036272484,0.27244,3671.1,3671.0,0.27244]
[1736036272886,0.27244,3671.0,3670.9,0.27244]
[1736036273688,0.27244,3671.0,3670.6,0.764]
[1736036273689,0.27244,3671.1,3671.0,0.27244]
[1736036273990,0.27242,3671.3,3670.9,0.27244]
[1736036274188,0.27244,3671.1,3670.7,0.27246]
[1736036274395,0.27244,3671.1,3670.8,1.5825]
[1736036274690,0.27244,3671.0,3670.9,0.27244]
[1736036277596,0.27244,3671.1,3671.0,0.27244]
[1736036277794,3.19610851,3671.2,3671.1,0.27243]
[1736036277795,3.46853851,3671.2,3671.1,0.27243]
[1736036277988,3.19610851,3671.2,3671.1,0.27243]
[1736036279290,0.40882014,3671.2,3671.0,2.17341063]
[1736036279492,0.40882014,3671.2,3671.1,0.27243]
[1736036279692,1.12635182,3671.3,3671.2,0.27243]
[1736036279997,1.12635182,3671.3,3671.1,3.2078]
[1736036279998,3.94011659,3671.5,3671.4,0.27241]
[1736036280199,3.94011659,3671.5,3671.4,2.44582063]
[1736036281495,3.20945648,3671.9,3671.4,2.17341063]
[1736036281690,3.20945648,3671.9,3671.8,0.27238]
[1736036282909,3.48017,3672.0,3671.8,0.27238]
[1736036283602,3.48017,3672.0,3671.6,0.2724]
[1736036283807,3.48017,3672.0,3671.8,0.27238]
[1736036284497,3.20945648,3672.2,3671.8,2.17341063]
[1736036284697,3.20945648,3672.2,3672.1,2.44577063]
[1736036285202,3.2078,3672.9,3672.1,7.17341063]
[1736036285397,3.2078,3672.9,3672.8,0.27231]
[1736036285598,6.84817304,3673.5,3672.8,3.23641063]
[1736036285805,1.25026754,3673.5,3673.4,7.82688126]
[1736036286003,6.07177943,3673.7,3673.4,12.55462126]
[1736036286203,5.67054053,3674.9,3674.8,0.27216]
[1736036286504,3.52504744,3674.9,3674.8,5.65337063]
[1736036286701,3.52504744,3674.9,3674.8,3.47996]
[1736036287202,3.52504744,3674.9,3674.8,5.65337063]
[1736036287409,2.17341063,3676.0,3674.8,5.38121063]
[1736036287607,13.612,3675.6,3675.2,3.2078]
[1736036287805,1.38504,3676.5,3675.7,0.27209]
[1736036288010,13.612,3676.2,3675.9,0.27208]
[1736036288306,0.27201,3676.8,3676.0,0.27206]
[1736036288512,13.612,3676.6,3676.2,3.2078]
[1736036288708,13.612,3676.3,3676.2,3.2078]
[1736036288903,13.88405,3676.3,3676.2,3.2078]
[1736036289608,0.27206,3676.2,3676.1,4.88597193]
[1736036289808,24.2481929,3676.2,3676.1,4.88597193]
[1736036290006,24.5202529,3676.2,3676.1,1.08407193]
[1736036290206,11.70683752,3676.1,3676.0,4.25396678]
[1736036290411,11.70689752,3675.4,3675.3,9.74697596]
[1736036290814,12.81989752,3675.4,3675.3,7.21217596]
[1736036291011,12.81989752,3675.4,3675.3,5.94477596]
[1736036291208,12.81989752,3675.4,3675.3,2.14257596]
[1736036293003,12.54777752,3675.4,3674.6,15.20611093]
[1736036293210,11.43477752,3674.8,3674.6,15.20611093]
[1736036293413,3.2078,3676.1,3675.0,0.27214]
[1736036293610,11.43477752,3675.9,3675.5,3.2078]
[1736036293811,11.43477752,3675.9,3675.6,0.2721]
[1736036294011,11.43477752,3675.9,3675.5,3.2078]
[1736036294213,11.43477752,3675.9,3675.5,3.47991]
[1736036294615,11.43477752,3675.9,3675.5,3.2078]
[1736036294811,3.2078,3676.1,3675.5,3.2078]
[1736036295018,4.3208,3676.7,3675.9,3.47988]
[1736036295216,11.43477752,3676.2,3675.9,3.47988]
[1736036295417,11.43477752,3676.2,3675.9,3.2078]
[1736036295614,11.43477752,3676.0,3675.9,3.2078]
[1736036295920,11.43477752,3676.2,3675.9,3.2078]
[1736036296219,11.43477752,3676.1,3675.9,3.2078]
[1736036296611,2.17341063,3676.5,3675.9,3.2078]
[1736036296919,2.17341063,3676.5,3675.9,3.47988]
[1736036296920,11.43477752,3676.2,3675.9,3.47988]
[1736036297217,0.27204,3676.5,3675.9,3.2078]
[1736036297418,11.43477752,3676.4,3676.0,0.27206]
[1736036297719,11.43477752,3676.3,3675.9,3.47987]
[1736036297916,11.43477752,3676.2,3675.9,3.2078]
[1736036298811,11.43477752,3676.1,3675.9,3.2078]
[1736036299116,11.70684752,3676.1,3675.9,3.2078]
[1736036299312,11.43477752,3676.0,3675.9,3.2078]
[1736036301017,11.70684752,3676.0,3675.9,3.2078]
[1736036301222,11.43477752,3676.0,3675.9,3.2078]
[1736036301914,0.27205,3676.3,3675.9,3.47988]
[1736036302108,11.70684752,3676.1,3675.9,3.2078]
[1736036302412,11.43477752,3676.0,3675.9,3.2078]
[1736036302608,11.70684752,3676.0,3675.9,3.2078]
[1736036303014,0.2721,3675.6,3675.5,3.2078]
[1736036303211,11.43477752,3675.2,3675.1,3.2078]
[1736036303419,11.70690752,3675.2,3674.7,3.47996]
[1736036303619,11.43477752,3675.1,3674.7,3.47996]